[Event "*** Titled Tuesday Blitz"]
[Site "Chess.com"]
[Date "2020.05.05"]
[Round "8"]
[White "rpragchess"]
[Black "MikhailovViacheslav"]
[Result "0-1"]
[WhiteElo "2832"]
[BlackElo "2655"]
[TimeControl "180+1"]
[EndTime "11:34:28 PDT"]
[Termination "MikhailovViacheslav won by resignation"]

1. Nf3 {[%clk 0:03:00.9]} 1... Nf6 {[%clk 0:02:59.4]} 2. g3 {[%clk 0:03:00]}
2... g6 {[%clk 0:02:59.5]} 3. Bg2 {[%clk 0:02:57.7]} 3... Bg7 {[%clk 0:02:59.5]}
4. O-O {[%clk 0:02:57.7]} 4... O-O {[%clk 0:02:59.5]} 5. d3 {[%clk 0:02:57.6]}
5... c5 {[%clk 0:02:57.1]} 6. e4 {[%clk 0:02:56.7]} 6... d6 {[%clk 0:02:55.1]}
7. Nc3 {[%clk 0:02:56.6]} 7... Nc6 {[%clk 0:02:51.7]} 8. Nd5 {[%clk 0:02:52.4]}
8... e6 {[%clk 0:02:44.8]} 9. Ne3 {[%clk 0:02:51.9]} 9... d5 {[%clk 0:02:36.9]}
10. exd5 {[%clk 0:02:37.1]} 10... exd5 {[%clk 0:02:35.9]} 11. d4 {[%clk
0:02:37.4]} 11... cxd4 {[%clk 0:02:35.2]} 12. Nxd4 {[%clk 0:02:35.9]} 12... Qb6
{[%clk 0:02:34.6]} 13. Nb3 {[%clk 0:02:25]} 13... Be6 {[%clk 0:02:31.5]} 14. c3
{[%clk 0:02:25]} 14... a5 {[%clk 0:02:27.5]} 15. Nc2 {[%clk 0:02:24]} 15... Bg4
{[%clk 0:02:23.3]} 16. Qe1 {[%clk 0:02:17.2]} 16... Rfe8 {[%clk 0:02:21.2]} 17.
Be3 {[%clk 0:02:16.2]} 17... Qd8 {[%clk 0:02:18.4]} 18. Ncd4 {[%clk 0:02:09.8]}
18... a4 {[%clk 0:02:12.9]} 19. Nc5 {[%clk 0:02:00.2]} 19... Ne5 {[%clk
0:02:08.1]} 20. Qb1 {[%clk 0:01:41.3]} 20... Nc4 {[%clk 0:02:02.4]} 21. Bg5
{[%clk 0:01:37.9]} 21... Qc8 {[%clk 0:01:55.4]} 22. Nd3 {[%clk 0:01:18.9]} 22...
Ne4 {[%clk 0:01:50.8]} 23. Qc1 {[%clk 0:01:02.5]} 23... a3 {[%clk 0:01:49.1]}
24. b3 {[%clk 0:00:59]} 24... Nb2 {[%clk 0:01:46.4]} 25. Nb4 {[%clk 0:00:47.1]}
25... Nxc3 {[%clk 0:01:42.7]} 26. Nbc2 {[%clk 0:00:41.4]} 26... Re2 {[%clk
0:01:29.8]} 27. Bh6 {[%clk 0:00:31.5]} 27... Rxc2 {[%clk 0:01:25.5]} 28. Qxc2
{[%clk 0:00:31.4]} 28... Bxh6 {[%clk 0:01:21.8]} 29. Kh1 {[%clk 0:00:30]} 29...
Qc5 {[%clk 0:01:16.3]} 30. Nf3 {[%clk 0:00:26.1]} 30... Bf5 {[%clk 0:01:12.3]}
31. b4 {[%clk 0:00:25.4]} 31... Qxb4 {[%clk 0:01:09.3]} 32. Qb3 {[%clk 0:00:26]}
32... Qxb3 {[%clk 0:01:08.5]} 33. axb3 {[%clk 0:00:26.9]} 33... Bg7 {[%clk
0:01:05.6]} 0-1

[Event "*** Titled Tuesday Blitz"]
[Site "Chess.com"]
[Date "2020.05.05"]
[Round "8"]
[White "Anastasia_Nesytova"]
[Black "Susal_De_Silva"]
[Result "0-1"]
[WhiteElo "2369"]
[BlackElo "2258"]
[TimeControl "180+1"]
[EndTime "11:34:28 PDT"]
[Termination "Susal_De_Silva won by resignation"]

1. d4 {[%clk 0:03:00.9]} 1... Nf6 {[%clk 0:02:59.7]} 2. c4 {[%clk 0:03:00.5]}
2... e6 {[%clk 0:02:59.6]} 3. g3 {[%clk 0:03:00.1]} 3... Be7 {[%clk 0:02:52.5]}
4. Bg2 {[%clk 0:02:59.2]} 4... O-O {[%clk 0:02:52.9]} 5. Nf3 {[%clk 0:02:59.4]}
5... b6 {[%clk 0:02:52.6]} 6. Ne5 {[%clk 0:02:55.8]} 6... d5 {[%clk 0:02:47.7]}
7. O-O {[%clk 0:02:53.4]} 7... Bb7 {[%clk 0:02:47.8]} 8. cxd5 {[%clk 0:02:53.2]}
8... Bxd5 {[%clk 0:02:45.6]} 9. Nc3 {[%clk 0:02:52.6]} 9... Bxg2 {[%clk
0:02:44.7]} 10. Kxg2 {[%clk 0:02:52.7]} 10... c5 {[%clk 0:02:41.5]} 11. dxc5
{[%clk 0:02:51.7]} 11... Bxc5 {[%clk 0:02:42.4]} 12. Bf4 {[%clk 0:02:48.4]}
12... Nbd7 {[%clk 0:02:32.1]} 13. b4 {[%clk 0:02:34.3]} 13... Bxb4 {[%clk
0:02:16.5]} 14. Nc6 {[%clk 0:02:34]} 14... Qc8 {[%clk 0:02:16.1]} 15. Nxb4
{[%clk 0:02:34]} 15... Qxc3 {[%clk 0:02:16.1]} 16. Bd6 {[%clk 0:02:34]} 16...
Rfc8 {[%clk 0:02:10.7]} 17. Rc1 {[%clk 0:02:03.5]} 17... Qxc1 {[%clk 0:01:37.2]}
18. Qxc1 {[%clk 0:02:03.3]} 18... Rxc1 {[%clk 0:01:38.1]} 19. Rxc1 {[%clk
0:02:04]} 19... a5 {[%clk 0:01:38.1]} 20. Nc6 {[%clk 0:02:02.9]} 20... h6 {[%clk
0:01:24.8]} 21. Ne7+ {[%clk 0:02:01.7]} 21... Kh7 {[%clk 0:01:24.1]} 22. Rc7
{[%clk 0:02:01]} 22... b5 {[%clk 0:01:16.3]} 23. f3 {[%clk 0:01:59.4]} 23... b4
{[%clk 0:01:15.9]} 24. Nc6 {[%clk 0:01:57.8]} 24... Ra6 {[%clk 0:00:58.5]} 25.
Rc8 {[%clk 0:00:47.3]} 25... Nb6 {[%clk 0:00:51.6]} 26. Rd8 {[%clk 0:00:42]}
26... Nc4 {[%clk 0:00:48.2]} 27. Ne5 {[%clk 0:00:27.1]} 27... Rxd6 {[%clk
0:00:40.8]} 0-1

[Event "*** Titled Tuesday Blitz"]
[Site "Chess.com"]
[Date "2020.05.05"]
[Round "8"]
[White "AsaHoffmann"]
[Black "Turquoise_2701"]
[Result "1-0"]
[WhiteElo "2373"]
[BlackElo "2165"]
[TimeControl "180+1"]
[EndTime "11:34:29 PDT"]
[Termination "AsaHoffmann won by resignation"]

1. d4 {[%clk 0:02:57.9]} 1... Nf6 {[%clk 0:02:59.2]} 2. Bg5 {[%clk 0:02:56.4]}
2... e6 {[%clk 0:02:57.4]} 3. Nd2 {[%clk 0:02:55.8]} 3... c5 {[%clk 0:02:55.8]}
4. e3 {[%clk 0:02:55.3]} 4... d5 {[%clk 0:02:54.2]} 5. c3 {[%clk 0:02:53.1]}
5... Nc6 {[%clk 0:02:54]} 6. f4 {[%clk 0:02:52.7]} 6... Be7 {[%clk 0:02:53.7]}
7. Ngf3 {[%clk 0:02:52.4]} 7... Nd7 {[%clk 0:02:50.9]} 8. Bd3 {[%clk 0:02:40.8]}
8... Bxg5 {[%clk 0:02:47.7]} 9. Nxg5 {[%clk 0:02:40.1]} 9... cxd4 {[%clk
0:02:29.6]} 10. exd4 {[%clk 0:02:36.8]} 10... e5 {[%clk 0:02:15.1]} 11. dxe5
{[%clk 0:02:01.6]} 11... Ndxe5 {[%clk 0:02:11.4]} 12. Bb5 {[%clk 0:01:54.5]}
12... Bg4 {[%clk 0:01:50.2]} 13. Qa4 {[%clk 0:01:48.6]} 13... O-O {[%clk
0:01:47.9]} 14. O-O {[%clk 0:01:42.8]} 14... Qb6+ {[%clk 0:01:36.8]} 15. Kh1
{[%clk 0:01:41.6]} 15... a6 {[%clk 0:01:31.4]} 16. fxe5 {[%clk 0:01:38.4]} 16...
Nxe5 {[%clk 0:01:05.2]} 17. Qf4 {[%clk 0:00:57.6]} 17... Qxb5 {[%clk 0:00:36.5]}
18. Qxe5 {[%clk 0:00:55.2]} 18... f6 {[%clk 0:00:36.6]} 19. Qg3 {[%clk
0:00:39.8]} 19... Be2 {[%clk 0:00:11.5]} 20. Ne6 {[%clk 0:00:39.1]} 20... Qd7
{[%clk 0:00:12]} 21. Nxf8 {[%clk 0:00:35.4]} 21... Rxf8 {[%clk 0:00:10.4]} 22.
Rf2 {[%clk 0:00:34.9]} 1-0

[Event "*** Titled Tuesday Blitz"]
[Site "Chess.com"]
[Date "2020.05.05"]
[Round "8"]
[White "AlexZambrano"]
[Black "mbachez"]
[Result "0-1"]
[WhiteElo "2283"]
[BlackElo "2447"]
[TimeControl "180+1"]
[EndTime "11:34:30 PDT"]
[Termination "mbachez won on time"]

1. Nf3 {[%clk 0:02:59.3]} 1... Nf6 {[%clk 0:02:56.3]} 2. g3 {[%clk 0:02:58.7]}
2... d5 {[%clk 0:02:55.7]} 3. d4 {[%clk 0:02:59.1]} 3... Bf5 {[%clk 0:02:55.5]}
4. Bg2 {[%clk 0:02:59.3]} 4... c6 {[%clk 0:02:55.6]} 5. O-O {[%clk 0:02:58.9]}
5... h6 {[%clk 0:02:55.9]} 6. c4 {[%clk 0:02:56.7]} 6... e6 {[%clk 0:02:56.1]}
7. Nc3 {[%clk 0:02:39.5]} 7... Nbd7 {[%clk 0:02:55.3]} 8. Re1 {[%clk 0:02:32.6]}
8... Be7 {[%clk 0:02:52.7]} 9. Nh4 {[%clk 0:02:31.8]} 9... Bh7 {[%clk
0:02:50.7]} 10. Nf3 {[%clk 0:02:31.8]} 10... O-O {[%clk 0:02:49.9]} 11. Nd2
{[%clk 0:02:26.3]} 11... a5 {[%clk 0:02:48.8]} 12. e4 {[%clk 0:02:24.6]} 12...
dxe4 {[%clk 0:02:48.8]} 13. Ndxe4 {[%clk 0:02:24.2]} 13... Nxe4 {[%clk
0:02:48.9]} 14. Nxe4 {[%clk 0:02:24.2]} 14... Nf6 {[%clk 0:02:49.2]} 15. Nxf6+
{[%clk 0:02:15]} 15... Bxf6 {[%clk 0:02:47.7]} 16. Be3 {[%clk 0:02:15.3]} 16...
Qb6 {[%clk 0:02:42.5]} 17. Qd2 {[%clk 0:02:12.1]} 17... Rfd8 {[%clk 0:02:41.2]}
18. Rad1 {[%clk 0:01:47.7]} 18... Qb4 {[%clk 0:02:37.8]} 19. Bf1 {[%clk
0:01:33.9]} 19... Rd7 {[%clk 0:02:34.9]} 20. a3 {[%clk 0:01:24]} 20... Qb6
{[%clk 0:02:27.2]} 21. Qc1 {[%clk 0:00:46.7]} 21... Qd8 {[%clk 0:02:24.7]} 22.
Qd2 {[%clk 0:00:28.2]} 22... Be4 {[%clk 0:02:22.5]} 23. Bg2 {[%clk 0:00:25.3]}
23... Bxg2 {[%clk 0:02:22.3]} 24. Kxg2 {[%clk 0:00:25.3]} 24... a4 {[%clk
0:02:22.4]} 25. Qb4 {[%clk 0:00:23.4]} 25... b6 {[%clk 0:02:06.2]} 26. d5 {[%clk
0:00:12.1]} 26... c5 {[%clk 0:01:59.5]} 27. Qd2 {[%clk 0:00:12.1]} 27... exd5
{[%clk 0:01:59.1]} 28. cxd5 {[%clk 0:00:12.3]} 28... Be7 {[%clk 0:01:42]} 29.
Bf4 {[%clk 0:00:12.2]} 29... Bf8 {[%clk 0:01:41.2]} 30. Re3 {[%clk 0:00:08.4]}
30... c4 {[%clk 0:01:39.5]} 31. Re4 {[%clk 0:00:07.6]} 31... b5 {[%clk
0:01:39.3]} 32. Be3 {[%clk 0:00:04.8]} 32... Ra6 {[%clk 0:01:37.4]} 33. Bf4
{[%clk 0:00:04]} 33... Bd6 {[%clk 0:01:31.1]} 34. h4 {[%clk 0:00:03]} 34... Bxf4
{[%clk 0:01:30.2]} 35. Rxf4 {[%clk 0:00:03.2]} 35... Rad6 {[%clk 0:01:30.1]} 36.
Rf5 {[%clk 0:00:02]} 36... g6 {[%clk 0:01:25.9]} 0-1

[Event "*** Titled Tuesday Blitz"]
[Site "Chess.com"]
[Date "2020.05.05"]
[Round "8"]
[White "827883"]
[Black "2346PL"]
[Result "0-1"]
[WhiteElo "2220"]
[BlackElo "2370"]
[TimeControl "180+1"]
[EndTime "11:34:30 PDT"]
[Termination "2346PL won by resignation"]

1. e4 {[%clk 0:03:00.9]} 1... c5 {[%clk 0:03:00]} 2. Nf3 {[%clk 0:03:01]} 2...
Nf6 {[%clk 0:03:00.5]} 3. e5 {[%clk 0:03:00.4]} 3... Nd5 {[%clk 0:03:00.6]} 4.
Nc3 {[%clk 0:03:00.8]} 4... e6 {[%clk 0:03:01]} 5. d4 {[%clk 0:02:59.7]} 5...
Nxc3 {[%clk 0:02:59.8]} 6. bxc3 {[%clk 0:02:59.5]} 6... d6 {[%clk 0:03:00.7]} 7.
Bd3 {[%clk 0:02:51.5]} 7... Nc6 {[%clk 0:02:59.1]} 8. O-O {[%clk 0:02:48.7]}
8... Qc7 {[%clk 0:02:56.8]} 9. Rb1 {[%clk 0:02:39.5]} 9... dxe5 {[%clk
0:02:54.1]} 10. dxe5 {[%clk 0:02:33.8]} 10... Be7 {[%clk 0:02:52.5]} 11. Re1
{[%clk 0:02:29.5]} 11... b6 {[%clk 0:02:47.1]} 12. Bf4 {[%clk 0:02:14.3]} 12...
Bb7 {[%clk 0:02:45.4]} 13. Bg3 {[%clk 0:02:09.5]} 13... O-O-O {[%clk 0:02:29.8]}
14. Qe2 {[%clk 0:02:07.6]} 14... g5 {[%clk 0:02:29.9]} 15. Nd2 {[%clk
0:01:58.7]} 15... h5 {[%clk 0:02:28.8]} 16. h3 {[%clk 0:01:47]} 16... g4 {[%clk
0:02:29]} 17. hxg4 {[%clk 0:01:43.5]} 17... h4 {[%clk 0:02:29.1]} 18. Bh2 {[%clk
0:01:42.5]} 18... h3 {[%clk 0:02:29.5]} 19. Nc4 {[%clk 0:01:35.8]} 19... hxg2
{[%clk 0:02:26.9]} 20. Nd6+ {[%clk 0:01:34.3]} 20... Rxd6 {[%clk 0:02:20]} 21.
exd6 {[%clk 0:01:33.8]} 21... Bxd6 {[%clk 0:02:20.3]} 22. Bxd6 {[%clk
0:00:20.9]} 22... Qxd6 {[%clk 0:02:21.2]} 23. f4 {[%clk 0:00:20.1]} 23... Qxf4
{[%clk 0:02:12.5]} 24. Qxg2 {[%clk 0:00:19.8]} 24... Nd4 {[%clk 0:02:05.9]} 25.
Be4 {[%clk 0:00:19.2]} 25... Bxe4 {[%clk 0:01:55.2]} 26. Rxe4 {[%clk 0:00:19.4]}
26... Nf3+ {[%clk 0:01:54.8]} 27. Kf2 {[%clk 0:00:14.5]} 27... Qxe4 {[%clk
0:01:49]} 28. Qxf3 {[%clk 0:00:14.5]} 28... Rh2+ {[%clk 0:01:48.3]} 29. Kg3
{[%clk 0:00:13]} 29... Rh3+ {[%clk 0:01:48.6]} 30. Kxh3 {[%clk 0:00:13.1]} 30...
Qxf3+ {[%clk 0:01:48.9]} 31. Kh4 {[%clk 0:00:13.1]} 31... Qf6+ {[%clk
0:01:45.7]} 32. g5 {[%clk 0:00:12.5]} 32... Qf2+ {[%clk 0:01:29.9]} 33. Kh5
{[%clk 0:00:11.9]} 33... Qh2+ {[%clk 0:01:29.9]} 34. Kg4 {[%clk 0:00:11.4]}
34... Kd7 {[%clk 0:01:27.7]} 35. a4 {[%clk 0:00:10.7]} 35... Qxc2 {[%clk
0:01:25.6]} 36. Ra1 {[%clk 0:00:08.4]} 36... Qxc3 {[%clk 0:01:23.9]} 37. Rd1+
{[%clk 0:00:08.5]} 37... Ke7 {[%clk 0:01:24.2]} 38. a5 {[%clk 0:00:08.6]} 38...
bxa5 {[%clk 0:01:22.5]} 39. Rb1 {[%clk 0:00:05.3]} 39... Qb4+ {[%clk 0:01:22.2]}
40. Kh5 {[%clk 0:00:01.7]} 40... Qxb1 {[%clk 0:01:20.9]} 0-1

[Event "*** Titled Tuesday Blitz"]
[Site "Chess.com"]
[Date "2020.05.05"]
[Round "8"]
[White "powermove"]
[Black "Munkhzul_Turmunkh"]
[Result "0-1"]
[WhiteElo "1679"]
[BlackElo "2484"]
[TimeControl "180+1"]
[EndTime "11:34:32 PDT"]
[Termination "Munkhzul_Turmunkh won on time"]

1. Nf3 {[%clk 0:03:00.9]} 1... Nf6 {[%clk 0:02:58.8]} 2. g3 {[%clk 0:03:00.9]}
2... e6 {[%clk 0:02:57.7]} 3. Bg2 {[%clk 0:03:00.4]} 3... d5 {[%clk 0:02:58.2]}
4. O-O {[%clk 0:02:59.9]} 4... Be7 {[%clk 0:02:58.7]} 5. d3 {[%clk 0:02:59.7]}
5... O-O {[%clk 0:02:59]} 6. Nbd2 {[%clk 0:02:59.2]} 6... c5 {[%clk 0:02:58.9]}
7. e4 {[%clk 0:02:58]} 7... Nc6 {[%clk 0:02:58.6]} 8. c3 {[%clk 0:02:55.7]} 8...
dxe4 {[%clk 0:02:52.9]} 9. dxe4 {[%clk 0:02:55.1]} 9... e5 {[%clk 0:02:52.5]}
10. Qe2 {[%clk 0:02:49.9]} 10... h6 {[%clk 0:02:50.6]} 11. Nc4 {[%clk
0:02:39.9]} 11... Qc7 {[%clk 0:02:47.4]} 12. a4 {[%clk 0:02:36.9]} 12... Be6
{[%clk 0:02:46.5]} 13. Nfd2 {[%clk 0:02:08.5]} 13... Rad8 {[%clk 0:02:43.8]} 14.
Ne3 {[%clk 0:01:58]} 14... Rfe8 {[%clk 0:02:38.3]} 15. Ndc4 {[%clk 0:01:51.9]}
15... a6 {[%clk 0:02:32.8]} 16. a5 {[%clk 0:01:48.1]} 16... Bf8 {[%clk 0:02:28]}
17. Nb6 {[%clk 0:01:32.3]} 17... g6 {[%clk 0:02:14.9]} 18. Nbd5 {[%clk
0:01:27.1]} 18... Bxd5 {[%clk 0:02:14.6]} 19. exd5 {[%clk 0:01:13.7]} 19... Ne7
{[%clk 0:02:13.8]} 20. c4 {[%clk 0:01:11]} 20... Bg7 {[%clk 0:02:13.7]} 21. h4
{[%clk 0:01:01]} 21... Nc8 {[%clk 0:02:12.9]} 22. h5 {[%clk 0:00:51.3]} 22...
Nd6 {[%clk 0:02:08.4]} 23. hxg6 {[%clk 0:00:49.8]} 23... fxg6 {[%clk 0:02:09.3]}
24. b3 {[%clk 0:00:37.5]} 24... Rf8 {[%clk 0:02:07.3]} 25. Ra2 {[%clk
0:00:22.6]} 25... Kh7 {[%clk 0:02:06]} 26. Ng4 {[%clk 0:00:12.3]} 26... Nxg4
{[%clk 0:02:00.7]} 27. Qxg4 {[%clk 0:00:12.3]} 27... Rde8 {[%clk 0:02:00.9]} 28.
Be4 {[%clk 0:00:06]} 28... Nxe4 {[%clk 0:01:59.2]} 29. Qxe4 {[%clk 0:00:06]}
29... Qd6 {[%clk 0:01:59.8]} 30. Kg2 {[%clk 0:00:05.9]} 30... Rf5 {[%clk
0:01:58.8]} 31. Rh1 {[%clk 0:00:05.5]} 31... Ref8 {[%clk 0:01:57.6]} 32. Be3
{[%clk 0:00:05.5]} 32... Kg8 {[%clk 0:01:54.9]} 33. Rh2 {[%clk 0:00:05.1]} 33...
g5 {[%clk 0:01:53.4]} 34. Ra1 {[%clk 0:00:04.8]} 34... Qf6 {[%clk 0:01:52.3]}
35. Rah1 {[%clk 0:00:04.3]} 35... Rf7 {[%clk 0:01:35]} 36. Kg1 {[%clk
0:00:04.2]} 36... Rf3 {[%clk 0:01:33.9]} 37. Qg4 {[%clk 0:00:03.3]} 37... Rxe3
{[%clk 0:01:32.6]} 0-1

[Event "*** Titled Tuesday Blitz"]
[Site "Chess.com"]
[Date "2020.05.05"]
[Round "8"]
[White "WiktoriaPOL"]
[Black "ItsCheckM8Mate"]
[Result "0-1"]
[WhiteElo "2034"]
[BlackElo "2271"]
[TimeControl "180+1"]
[EndTime "11:34:34 PDT"]
[Termination "ItsCheckM8Mate won by resignation"]

1. c4 {[%clk 0:03:00.9]} 1... Nf6 {[%clk 0:02:59.3]} 2. Nc3 {[%clk 0:02:59.9]}
2... e6 {[%clk 0:02:53.5]} 3. e4 {[%clk 0:02:58.4]} 3... d5 {[%clk 0:02:53.7]}
4. e5 {[%clk 0:02:58.4]} 4... d4 {[%clk 0:02:53.9]} 5. exf6 {[%clk 0:02:58]}
5... dxc3 {[%clk 0:02:54]} 6. bxc3 {[%clk 0:02:58.3]} 6... Qxf6 {[%clk
0:02:53.1]} 7. Nf3 {[%clk 0:02:58.8]} 7... e5 {[%clk 0:02:51.5]} 8. d4 {[%clk
0:02:57.9]} 8... exd4 {[%clk 0:02:50.7]} 9. Bg5 {[%clk 0:02:56.7]} 9... Qe6+
{[%clk 0:02:49.1]} 10. Be2 {[%clk 0:02:56.5]} 10... Be7 {[%clk 0:02:49.4]} 11.
Bxe7 {[%clk 0:02:52.9]} 11... Qxe7 {[%clk 0:02:47.5]} 12. cxd4 {[%clk
0:02:53.5]} 12... O-O {[%clk 0:02:47.2]} 13. O-O {[%clk 0:02:53.4]} 13... b6
{[%clk 0:02:36.9]} 14. Re1 {[%clk 0:02:52.5]} 14... Qf6 {[%clk 0:02:36.4]} 15.
Bd3 {[%clk 0:02:48.1]} 15... Bb7 {[%clk 0:02:33.5]} 16. Ne5 {[%clk 0:02:45.1]}
16... Rd8 {[%clk 0:02:24.6]} 17. Bc2 {[%clk 0:02:39.7]} 17... Nd7 {[%clk
0:02:04.4]} 18. Qd3 {[%clk 0:02:23.6]} 18... g6 {[%clk 0:02:04]} 19. Nxd7 {[%clk
0:01:57.1]} 19... Rxd7 {[%clk 0:02:02.6]} 20. Rad1 {[%clk 0:01:56.4]} 20... Rad8
{[%clk 0:01:59.9]} 21. d5 {[%clk 0:01:51.1]} 21... c6 {[%clk 0:01:55.9]} 22. Ba4
{[%clk 0:01:48.4]} 22... b5 {[%clk 0:01:45.9]} 23. cxb5 {[%clk 0:01:46.5]} 23...
Rxd5 {[%clk 0:01:45.6]} 24. Qe2 {[%clk 0:01:22.4]} 24... cxb5 {[%clk 0:01:34.5]}
25. Bxb5 {[%clk 0:01:18]} 25... Qg5 {[%clk 0:01:11.7]} 26. Rxd5 {[%clk 0:01:15]}
26... Rxd5 {[%clk 0:01:09.3]} 27. Ba6 {[%clk 0:01:02.5]} 27... Re5 {[%clk
0:01:00.9]} 28. f4 {[%clk 0:00:23.9]} 28... Rxe2 {[%clk 0:00:55.2]} 29. Rxe2
{[%clk 0:00:20.5]} 29... Qc5+ {[%clk 0:00:51.3]} 30. Kh1 {[%clk 0:00:17.8]}
30... Qc1+ {[%clk 0:00:50.2]} 0-1

[Event "*** Titled Tuesday Blitz"]
[Site "Chess.com"]
[Date "2020.05.05"]
[Round "8"]
[White "Aikiigm"]
[Black "Mesa_1"]
[Result "1-0"]
[WhiteElo "2626"]
[BlackElo "2455"]
[TimeControl "180+1"]
[EndTime "11:34:35 PDT"]
[Termination "Aikiigm won by resignation"]

1. Nc3 {[%clk 0:02:35.2]} 1... d5 {[%clk 0:02:58.2]} 2. Nf3 {[%clk 0:02:36.1]}
2... c5 {[%clk 0:02:55]} 3. d4 {[%clk 0:02:35.7]} 3... cxd4 {[%clk 0:02:30.5]}
4. Nxd4 {[%clk 0:02:36.6]} 4... e5 {[%clk 0:02:28.4]} 5. Nf3 {[%clk 0:02:36.3]}
5... d4 {[%clk 0:02:24.9]} 6. Ne4 {[%clk 0:02:36.5]} 6... f5 {[%clk 0:02:22.8]}
7. Ng3 {[%clk 0:02:36]} 7... Nf6 {[%clk 0:02:20.6]} 8. e3 {[%clk 0:02:35.8]}
8... Nc6 {[%clk 0:02:11.3]} 9. exd4 {[%clk 0:02:35.4]} 9... exd4 {[%clk
0:02:11]} 10. Bc4 {[%clk 0:02:34.8]} 10... Bb4+ {[%clk 0:02:08.7]} 11. Bd2
{[%clk 0:02:34.3]} 11... Qe7+ {[%clk 0:02:06.9]} 12. Kf1 {[%clk 0:02:29.2]}
12... Bd7 {[%clk 0:01:50.6]} 13. Bxb4 {[%clk 0:02:25.4]} 13... Qxb4 {[%clk
0:01:45.2]} 14. Qe1+ {[%clk 0:02:25.4]} 14... Qxe1+ {[%clk 0:01:45.8]} 15. Rxe1+
{[%clk 0:02:24.8]} 15... Kd8 {[%clk 0:01:44.2]} 16. Rd1 {[%clk 0:02:15.4]} 16...
Rc8 {[%clk 0:01:34.9]} 17. Bb3 {[%clk 0:02:10.8]} 17... Na5 {[%clk 0:01:04.8]}
18. Nxd4 {[%clk 0:02:09.3]} 18... Nxb3 {[%clk 0:01:04.1]} 19. axb3 {[%clk
0:02:08.9]} 19... g6 {[%clk 0:01:02.9]} 20. f3 {[%clk 0:02:05.7]} 20... Nd5
{[%clk 0:00:49.1]} 21. Kf2 {[%clk 0:02:03.8]} 21... Re8 {[%clk 0:00:40.3]} 22.
Rhe1 {[%clk 0:02:02.8]} 22... Rxe1 {[%clk 0:00:39.7]} 23. Rxe1 {[%clk
0:02:00.7]} 23... Nb4 {[%clk 0:00:36.9]} 24. Re2 {[%clk 0:01:57.3]} 24... Rc5
{[%clk 0:00:30.6]} 25. Rd2 {[%clk 0:01:54.7]} 25... Kc7 {[%clk 0:00:29.1]} 26.
Nge2 {[%clk 0:01:54.6]} 26... a5 {[%clk 0:00:27.3]} 27. Nf4 {[%clk 0:01:53.9]}
27... Re5 {[%clk 0:00:22.9]} 28. h4 {[%clk 0:01:51.6]} 28... b5 {[%clk
0:00:21.8]} 29. c3 {[%clk 0:01:51.6]} 29... Nc6 {[%clk 0:00:19.8]} 30. Nd3
{[%clk 0:01:46.1]} 30... Rd5 {[%clk 0:00:16.5]} 31. Nxc6 {[%clk 0:01:45.6]}
31... Bxc6 {[%clk 0:00:17.4]} 32. Ke3 {[%clk 0:01:45.4]} 32... a4 {[%clk
0:00:15.4]} 33. b4 {[%clk 0:01:44.2]} 33... Rd8 {[%clk 0:00:14.8]} 34. Ne5
{[%clk 0:01:42.8]} 34... Re8 {[%clk 0:00:14.8]} 35. Kf4 {[%clk 0:01:42.1]} 35...
Bb7 {[%clk 0:00:13.5]} 36. Rd7+ {[%clk 0:01:40.4]} 36... Kb6 {[%clk 0:00:13.2]}
37. Rxh7 {[%clk 0:01:39.4]} 37... Rd8 {[%clk 0:00:13]} 38. Rg7 {[%clk
0:01:38.8]} 38... Rd2 {[%clk 0:00:12.7]} 39. Rxg6+ {[%clk 0:01:38.9]} 39... Ka7
{[%clk 0:00:13.3]} 40. h5 {[%clk 0:01:36.4]} 40... Rxb2 {[%clk 0:00:12.7]} 41.
h6 {[%clk 0:01:36.7]} 41... a3 {[%clk 0:00:13.1]} 42. h7 {[%clk 0:01:36.6]}
42... a2 {[%clk 0:00:13.5]} 43. h8=Q {[%clk 0:01:36.2]} 43... a1=Q {[%clk
0:00:13.1]} 44. Nd3 {[%clk 0:01:30]} 44... Re2 {[%clk 0:00:07.1]} 45. Qd4+
{[%clk 0:01:29.7]} 45... Ka8 {[%clk 0:00:06.2]} 46. Rg8+ {[%clk 0:01:28.9]} 1-0

[Event "*** Titled Tuesday Blitz"]
[Site "Chess.com"]
[Date "2020.05.05"]
[Round "8"]
[White "Falia-p"]
[Black "Petrosyan_Tigran"]
[Result "0-1"]
[WhiteElo "2383"]
[BlackElo "2542"]
[TimeControl "180+1"]
[EndTime "11:34:37 PDT"]
[Termination "Petrosyan_Tigran won by resignation"]

1. e4 {[%clk 0:03:00.9]} 1... e5 {[%clk 0:02:58.1]} 2. Nf3 {[%clk 0:03:00.9]}
2... Nc6 {[%clk 0:02:55.8]} 3. Bb5 {[%clk 0:03:00.5]} 3... a6 {[%clk 0:02:56.1]}
4. Ba4 {[%clk 0:03:00.1]} 4... Nf6 {[%clk 0:02:56.2]} 5. O-O {[%clk 0:02:57.8]}
5... Be7 {[%clk 0:02:54.3]} 6. Re1 {[%clk 0:02:56.7]} 6... b5 {[%clk 0:02:53.9]}
7. Bb3 {[%clk 0:02:56.1]} 7... d6 {[%clk 0:02:54.5]} 8. c3 {[%clk 0:02:55.2]}
8... O-O {[%clk 0:02:53.9]} 9. h3 {[%clk 0:02:54]} 9... Nb8 {[%clk 0:02:53.2]}
10. d4 {[%clk 0:02:52.2]} 10... Nbd7 {[%clk 0:02:53.2]} 11. Nbd2 {[%clk
0:02:50.1]} 11... c5 {[%clk 0:02:53.2]} 12. Nf1 {[%clk 0:02:47.2]} 12... Bb7
{[%clk 0:02:47.4]} 13. Ng3 {[%clk 0:02:46.7]} 13... cxd4 {[%clk 0:02:45.5]} 14.
cxd4 {[%clk 0:02:46.2]} 14... exd4 {[%clk 0:02:45.6]} 15. Nxd4 {[%clk
0:02:45.8]} 15... Nc5 {[%clk 0:02:45.3]} 16. Bc2 {[%clk 0:02:30.9]} 16... Re8
{[%clk 0:02:44.7]} 17. f3 {[%clk 0:02:27]} 17... Bf8 {[%clk 0:02:42.2]} 18. Bg5
{[%clk 0:02:23.9]} 18... h6 {[%clk 0:02:41.6]} 19. Be3 {[%clk 0:02:14.9]} 19...
d5 {[%clk 0:02:39.1]} 20. b4 {[%clk 0:02:07.9]} 20... Ncd7 {[%clk 0:02:35.5]}
21. Ndf5 {[%clk 0:02:01.9]} 21... dxe4 {[%clk 0:02:33.4]} 22. Nxe4 {[%clk
0:01:45.4]} 22... Nxe4 {[%clk 0:02:31.4]} 23. fxe4 {[%clk 0:01:45.3]} 23... Ne5
{[%clk 0:02:30.3]} 24. a3 {[%clk 0:01:34.9]} 24... Qxd1 {[%clk 0:02:20.5]} 25.
Raxd1 {[%clk 0:01:35.8]} 25... Rac8 {[%clk 0:02:20]} 26. Bb1 {[%clk 0:01:25.2]}
26... Nc4 {[%clk 0:02:05.4]} 27. Bc1 {[%clk 0:01:21.8]} 27... g6 {[%clk
0:02:03.5]} 28. Nxh6+ {[%clk 0:01:18.6]} 28... Bxh6 {[%clk 0:02:01.9]} 29. Bxh6
{[%clk 0:01:19.5]} 29... Nxa3 {[%clk 0:02:01.5]} 30. Rd7 {[%clk 0:01:14.8]}
30... Bc6 {[%clk 0:01:58.4]} 31. Ra7 {[%clk 0:01:11.3]} 31... Nxb1 {[%clk
0:01:58.2]} 32. Rxb1 {[%clk 0:01:11.7]} 32... Bxe4 {[%clk 0:01:58.4]} 33. Rf1
{[%clk 0:01:08.3]} 33... Bd5 {[%clk 0:01:52.3]} 34. Rf2 {[%clk 0:00:52.3]} 34...
Rc6 {[%clk 0:01:40.4]} 35. Bg5 {[%clk 0:00:45.2]} 35... Kg7 {[%clk 0:01:20]} 36.
h4 {[%clk 0:00:35.5]} 36... Re4 {[%clk 0:01:16.7]} 37. Bc1 {[%clk 0:00:21.4]}
37... Re1+ {[%clk 0:01:14.2]} 38. Rf1 {[%clk 0:00:20.2]} 38... Rcxc1 {[%clk
0:01:13.7]} 0-1